Workbook

Sheet 03.10.2024
A1: Школа | C1: МБОУ "СОШ №26" НМР РТ | F1: Согласование: | G1: должность | H1: Директор
A2: Типовое примерное меню приготавливаемых блюд | G2: фамилия | H2: Хайруллина Ч.М.
A3: Возрастная категория | E3: 7-11 лет | G3: дата | H3: 3 | I3: 10 | J3: 2024
H4: день | I4: месяц | J4: год
A5: Неделя | B5: День недели | C5: Прием пищи | D5: Раздел меню | E5: Блюда | F5: Вес блюда, г | G5: Белки | H5: Жиры | I5: Углеводы | J5: Калорийность | K5: № рецептуры | L5: Цена
A6: 3 | B6: 4 | C6: Завтрак | D6: доп.гарнир | E6: Сыр (порц.) | F6: 10 | G6: 2.63 | H6: 2.66 | I6: 0 | J6: 34.33
D7: гор.блюдо | E7: Котлеты "Нежные" из куриных грудок | F7: 90 | G7: 6.6 | H7: 12.93 | I7: 13.79 | J7: 169.8
D8: гарнир | E8: Каша пшеничная (вязкая) с маслом сливочным | F8: 153 | G8: 6.7 | H8: 4.38 | I8: 35.99 | J8: 227
D9: напиток | E9: Напиток из урюка | F9: 200 | G9: 0.75 | H9: 0.06 | I9: 15.95 | J9: 68.52
D10: хлеб бел. | E10: Хлеб пшеничный | F10: 20 | G10: 1.52 | H10: 0.16 | I10: 9.84 | J10: 47
D11: хлеб черн. | E11: Хлеб ржаной | F11: 30 | G11: 1.98 | H11: 0.36 | I11: 11.88 | J11: 59.4
D13: итого | F13: =SUM(F6:F12) -> 503 | G13: =SUM(G6:G12) -> 20.18 | H13: =SUM(H6:H12) -> 20.55 | I13: =SUM(I6:I12) -> 87.45 | J13: =SUM(J6:J12) -> 606.05 | L13: 80.66
A14: 3 | B14: 4 | C14: Завтрак | D14: хлеб бел. | E14: Бутерброд с сыром и маслом сливочным | F14: 50 | G14: 6.27 | H14: 7.86 | I14: 14.83 | J14: 155 | L14: 41.44
D15: гор.блюдо | E15: Каша геркулесовая молочная вязкая с маслом сливочным | F15: 185 | G15: 4.99 | H15: 7.4 | I15: 28.81 | J15: 206.3
D16: напиток | E16: Какао с молоком | F16: 200 | G16: 4.08 | H16: 3.54 | I16: 2.61 | J16: 58.6
D17: хлеб бел. | E17: Батон нарезной | F17: 65 | G17: 4.87 | H17: 1.88 | I17: 33.41 | J17: 170.3
D20: итого | F20: =F14+F15+F16+F17 -> 500 | G20: =SUM(G14:G19) -> 20.21 | H20: =SUM(H14:H19) -> 20.68 | I20: =SUM(I14:I19) -> 79.66 | J20: =SUM(J14:J19) -> 590.2 | L20: 41.44
A21: 3 | B21: =B14 -> 4 | C21: Обед | D21: 1 блюдо | E21: Борщ из свежей капусты с картофелем и со сметаной | F21: 205 | G21: 8.57 | H21: 10.69 | I21: 28.93 | J21: 293.1 | L21: 80.66
D22: 2 блюдо | E22: Котлеты "Нежные" из куриных грудок | F22: 90 | G22: 6.6 | H22: 12.93 | I22: 13.79 | J22: 169.8
D23: гарнир | E23: Каша пшеничная (вязкая) с маслом сливочным | F23: 155 | G23: 6.7 | H23: 4.38 | I23: 35.99 | J23: 227
D24: напиток | E24: Напиток из урюка | F24: 200 | G24: 0.75 | H24: 0.06 | I24: 15.95 | J24: 68.52
D25: хлеб черн. | E25: Хлеб ржаной | F25: 50 | G25: 3.3 | H25: 0.6 | I25: 19.8 | J25: 36.64
D28: итого | F28: =SUM(F21:F27) -> 700 | G28: =SUM(G21:G27) -> 25.92 | H28: =SUM(H21:H27) -> 28.66 | I28: =SUM(I21:I27) -> 114.46 | J28: =SUM(J21:J27) -> 795.06 | L28: =SUM(L21:L27) -> 80.66
A29: =A14 -> 3 | B29: =B14 -> 4 | C29: Итого за день: | F29: =F20+F28 -> 1200 | G29: =G20+G28 -> 46.13 | H29: 49.34 | I29: 194.12 | J29: 1385.26 | L29: =L20+L28 -> 122.10
